Workbook

Sheet Hoja de trabajo (hidden)
D1: COTIZADOR RESPONSABILIDAD CIVIL PARA CONSTRUCTORES | L1: Versión: | M1: 1 | O1: Nacional
L2: Fecha de elaboración: | M2: 2021-02-09 | O2: Dólares
O3: Vigencia | P3: =D30-C30 -> 364
A4: DATOS GENERALES | O4: Tipo de cambio | P4: 19.85
A6: Obra a realizar: | C6: Mantenimiento | O6: Forma de pago | P6: Contado
A8: Actividad: | C8: =IFERROR(VLOOKUP($C$6,Actividades!$C$29:$D$32,2,FALSE),"") -> Inmuebles, Sistemas de Comunicación, Electricos, Electronicos, de Computo | L8: Tipo de riesgo | M8: =IF(G35<=30200000,IFERROR(VLOOKUP(C8,Actividades!$D$29:$E$32,2,0),""),IFERROR(VLOOKUP(C8,Actividades!$D$34:$E$37,2,0),"")) -> Sencillo | O8: fecha hoy | P8: =NOW() -> 2022-03-18T15:02:28.870
A10: Ubicación del Proyecto:
A12: CP: | C12: 6700 | L12: Estado | M12: =IFERROR(VLOOKUP(C12,CP!$A$3:$D$96153,4,0),"") -> Ciudad de México
A14: Alcaldía | Municipio: | C14: =IFERROR(VLOOKUP(C12,CP!$A$3:$D$96153,3,0),"") -> Cuauhtémoc
A16: Estado: | C16: =IFERROR(VLOOKUP(C12,CP!$A$3:$D$96153,4,0),"") -> Ciudad de México
A18: Calle y número: | C18: ggtgt
A20: Colonia: | C20: tgtgt
A22: Valor del contrato: | C22: 2000000
A24: Moneda: | C24: Nacional | L24: Descuento por valor de contrato | M24: =SUM(('Descuentos y recargos'!$A$6:$A$15<'Hoja de trabajo'!$C$22)*('Descuentos y recargos'!$B$6:$B$15>='Hoja de trabajo'!$C$22)*('Descuentos y recargos'!$C$6:$C$15)) -> 1
A26: Número de máquinas | C26: 0 | L26: Descuento por máquinas | M26: =LOOKUP($C$26,'Descuentos y recargos'!$B$20:$B$28,'Descuentos y recargos'!C20:$C$28) -> 1
C28: Desde | D28: Hasta | L28: Descuento por vigencia del seguro | M28: =VLOOKUP((YEAR(D30)-YEAR(C30))*12+MONTH(D30)-MONTH(C30),'Descuentos y recargos'!$A$33:$B$45,2,0) -> 1
A30: Vigencia: | C30: 2021-09-30 | D30: 2022-09-29 | L30: Descuento por ubicación | M30: 1
C32: dd/mm/aaaa | D32: dd/mm/aaaa
B34: Coberturas | E34: Amparada | G34: Suma Asegurada | L34: Recargo por responsabilidad | M34: =IF(C24="Nacional",IF(SUM(('Descuentos y recargos'!$I$4:$K$4='Hoja de trabajo'!$M$8)*('Descuentos y recargos'!$E$6:$E$64<G35)*('Descuentos y recargos'!$F$6:$F$64>=G35)*('Descuentos y recargos'!$I$6:$K$64))=0,SUM(('Descuentos y recargos'!$I$4:$K$4='Hoja de trabajo'!$M$8)*('Descuentos y recargos'!$E$6:$E$64<25000000)*('Descuentos y recargos'!$F$6:$F$64>=25000000)*('Descuentos y recargos'!$I$6:$K$64)),SUM(('Descuentos y recargos'!$I$4:$K$4='Hoja de trabajo'!$M$8)*('Descuentos y recargos'!$E$6:$E$64<G35)*('Descuentos y recargos'!$F$6:$F$64>=G35)*('Descuentos y recargos'!$I$6:$K$64))),IF(SUM(('Descuentos y recargos'!$I$4:$K$4='Hoja de trabajo'!$M$8)*('Descuentos y recargos'!$G$6:$G$37<G35)*('Descuentos y recargos'!$H$6:$H$37>=G35)*('Descuentos y recargos'!$I$6:$K$37))=0,SUM(('Descuentos y recargos'!$I$4:$K$4='Hoja de trabajo'!$M$8)*('Descuentos y recargos'!$G$6:$G$37<25000000)*('Descuentos y recargos'!$H$6:$H$37>=25000000)*('Descuentos y recargos'!$I$6:$K$37)),SUM(('Descuentos y recargos'!$I$4:$K$4='Hoja de trabajo'!$M$8)*('Descuentos y recargos'!$G$6:$G$37<G35)*('Descuentos y recargos'!$H$6:$H$37>=G35)*('Descuentos y recargos'!$I$6:$K$37)))) -> 0.996743092
B35: Cobertura básica | E35: Sí | G35: 10885
B36: Personal bajo relación de trabajo | E36: No | L36: Cuota de riesgo | M36: Cuota de tarifa | N36: Prima de tarifa
B37: Instalaciones subterráneas | E37: Sí | L37: =SUM((Cuotas!$B$3:$B$19='Hoja de trabajo'!B35)*(Cuotas!$C$2:$E$2='Hoja de trabajo'!$M$8)*(Cuotas!$C$3:$E$19)) -> 0.4579839922 | M37: =(L37*$M$24*$M$26*$M$28*(1+$M$34)*$M$30)/(1-Cuotas!$H$4) -> 1.828952746 | N37: =IF(E35="Sí",M37*C22/1000,0) -> 3657.905491
B38: Trabajos de soldadura | E38: Sí | L38: =SUM((Cuotas!$B$3:$B$19='Hoja de trabajo'!B36)*(Cuotas!$C$2:$E$2='Hoja de trabajo'!$M$8)*(Cuotas!$C$3:$E$19)) -> 0.04579839922 | M38: =(L38*$M$24*$M$26*$M$28*(1+$M$34)*$M$30)/(1-Cuotas!$H$4) -> 0.1828952746 | N38: =IF(E36="Sí",M38*$G$35/1000,0) -> 0 | O38: SI(G36>$G$35,"Error",SI(E36="Sí",M38*G36/1000,0))
B39: Carga y descarga | E39: Sí | L39: =SUM((Cuotas!$B$3:$B$19='Hoja de trabajo'!B37)*(Cuotas!$C$2:$E$2='Hoja de trabajo'!$M$8)*(Cuotas!$C$3:$E$19)) -> 0.04579839922 | M39: =(L39*$M$24*$M$26*$M$28*(1+$M$34)*$M$30)/(1-Cuotas!$H$4) -> 0.1828952746 | N39: =IF(E37="Sí",M39*$G$35/1000,0) -> 1.990815064
B40: Demolición | E40: No | L40: =SUM((Cuotas!$B$3:$B$19='Hoja de trabajo'!B38)*(Cuotas!$C$2:$E$2='Hoja de trabajo'!$M$8)*(Cuotas!$C$3:$E$19)) -> 0.04579839922 | M40: =(L40*$M$24*$M$26*$M$28*(1+$M$34)*$M$30)/(1-Cuotas!$H$4) -> 0.1828952746 | N40: 1.990815064
B41: Explosivos | E41: No | L41: =SUM((Cuotas!$B$3:$B$19='Hoja de trabajo'!B39)*(Cuotas!$C$2:$E$2='Hoja de trabajo'!$M$8)*(Cuotas!$C$3:$E$19)) -> 0.1144959981 | M41: =(L41*$M$24*$M$26*$M$28*(1+$M$34)*$M$30)/(1-Cuotas!$H$4) -> 0.4572381864 | N41: 4.977037659
B42: Máquinas de trabajo | E42: No | L42: =SUM((Cuotas!$B$3:$B$19='Hoja de trabajo'!B40)*(Cuotas!$C$2:$E$2='Hoja de trabajo'!$M$8)*(Cuotas!$C$3:$E$19)) -> 0.04579839922 | M42: =(L42*$M$24*$M$26*$M$28*(1+$M$34)*$M$30)/(1-Cuotas!$H$4) -> 0.1828952746 | N42: 0
B43: Apuntalamiento | E43: Sí | L43: =SUM((Cuotas!$B$3:$B$19='Hoja de trabajo'!B41)*(Cuotas!$C$2:$E$2='Hoja de trabajo'!$M$8)*(Cuotas!$C$3:$E$19)) -> 0.2289919961 | M43: =(L43*$M$24*$M$26*$M$28*(1+$M$34)*$M$30)/(1-Cuotas!$H$4) -> 0.9144763728 | N43: 0
B44: Sostén a suelos y subsuelos vecinos | E44: No | L44: =SUM((Cuotas!$B$3:$B$19='Hoja de trabajo'!B42)*(Cuotas!$C$2:$E$2='Hoja de trabajo'!$M$8)*(Cuotas!$C$3:$E$19)) -> 0.04579839922 | M44: =(L44*$M$24*$M$26*$M$28*(1+$M$34)*$M$30)/(1-Cuotas!$H$4) -> 0.1828952746 | N44: 0
B45: RC arrendatario | E45: Sí | L45: =SUM((Cuotas!$B$3:$B$19='Hoja de trabajo'!B43)*(Cuotas!$C$2:$E$2='Hoja de trabajo'!$M$8)*(Cuotas!$C$3:$E$19)) -> 0.04579839922 | M45: =(L45*$M$24*$M$26*$M$28*(1+$M$34)*$M$30)/(1-Cuotas!$H$4) -> 0.1828952746 | N45: 1.990815064
B46: RC cruzada por riesgos vecinales | E46: Sí | L46: =SUM((Cuotas!$B$3:$B$19='Hoja de trabajo'!B44)*(Cuotas!$C$2:$E$2='Hoja de trabajo'!$M$8)*(Cuotas!$C$3:$E$19)) -> 0.04579839922 | M46: =(L46*$M$24*$M$26*$M$28*(1+$M$34)*$M$30)/(1-Cuotas!$H$4) -> 0.1828952746 | N46: 0
B47: RC asumida | E47: Sí | L47: =SUM((Cuotas!$B$3:$B$19='Hoja de trabajo'!B45)*(Cuotas!$C$2:$E$2='Hoja de trabajo'!$M$8)*(Cuotas!$C$3:$E$19)) -> 0.02289919961 | M47: =(L47*$M$24*$M$26*$M$28*(1+$M$34)*$M$30)/(1-Cuotas!$H$4) -> 0.09144763728 | N47: 0.9954075318
B48: Otras obras especiales | E48: No | L48: =SUM((Cuotas!$B$3:$B$19='Hoja de trabajo'!B46)*(Cuotas!$C$2:$E$2='Hoja de trabajo'!$M$8)*(Cuotas!$C$3:$E$19)) -> 0.1373951977 | M48: =(L48*$M$24*$M$26*$M$28*(1+$M$34)*$M$30)/(1-Cuotas!$H$4) -> 0.5486858237 | N48: 5.972445191
B49: RC contaminación | E49: No | L49: =SUM((Cuotas!$B$3:$B$19='Hoja de trabajo'!B47)*(Cuotas!$C$2:$E$2='Hoja de trabajo'!$M$8)*(Cuotas!$C$3:$E$19)) -> 0.02289919961 | M49: =(L49*$M$24*$M$26*$M$28*(1+$M$34)*$M$30)/(1-Cuotas!$H$4) -> 0.09144763728 | N49: 0.9954075318
B50: RC por daños ocasionados a bienes propiedad de terceros | E50: Sí | L50: =SUM((Cuotas!$B$3:$B$19='Hoja de trabajo'!B48)*(Cuotas!$C$2:$E$2='Hoja de trabajo'!$M$8)*(Cuotas!$C$3:$E$19)) -> 0.04579839922 | M50: =(L50*$M$24*$M$26*$M$28*(1+$M$34)*$M$30)/(1-Cuotas!$H$4) -> 0.1828952746 | N50: 0
B51: RC contratistas independientes | E51: Sí | L51: =SUM((Cuotas!$B$3:$B$19='Hoja de trabajo'!B49)*(Cuotas!$C$2:$E$2='Hoja de trabajo'!$M$8)*(Cuotas!$C$3:$E$19)) -> 0.2289919961 | M51: =(L51*$M$24*$M$26*$M$28*(1+$M$34)*$M$30)/(1-Cuotas!$H$4) -> 0.9144763728 | N51: 0
L52: =SUM((Cuotas!$B$3:$B$19='Hoja de trabajo'!B50)*(Cuotas!$C$2:$E$2='Hoja de trabajo'!$M$8)*(Cuotas!$C$3:$E$19)) -> 0.04579839922 | M52: =(L52*$M$24*$M$26*$M$28*(1+$M$34)*$M$30)/(1-Cuotas!$H$4) -> 0.1828952746 | N52: 1.990815064
L53: =SUM((Cuotas!$B$3:$B$19='Hoja de trabajo'!B51)*(Cuotas!$C$2:$E$2='Hoja de trabajo'!$M$8)*(Cuotas!$C$3:$E$19)) -> 0.02289919961 | M53: =(L53*$M$24*$M$26*$M$28*(1+$M$34)*$M$30)/(1-Cuotas!$H$4) -> 0.09144763728 | N53: 0.9954075318
L55: Prima de tarifa total | N55: =IF(SUM($N$37:$N$53)<2405.5,2436.24,SUM($N$37:$N$53)) -> 3679.804457

Sheet Cotización (hidden)
G1: COTIZACIÓN DE SEGURO RC KONSTRUYE
B4: DATOS DEL ASEGURADO / CONTRATANTE | F4: No. Cotización: | G4: 105157
B5: Nombre/Razón Social: | D5: HELMUT SERGIO SCHWARZ GARZA | F5: Agente | G5: Oficina | H5: Moneda
B6: R.F.C.: | F6: 1234 | G6: Cdmx | H6: =IFERROR('Hoja de trabajo'!C24,"") -> Nacional
B7: Direccion | F7: No. Contrato | G7: Forma de pago | H7: Días de Vigencia
C8: Calle y No. | G8: ='Hoja de trabajo'!P6 -> Contado | H8: ='Hoja de trabajo'!P3 -> 364
C9: Colonia | F9: Fecha
C10: Alcaldïa / Municipio | F10: Elaboración | G10: Desde | H10: Hasta
C11: Estado | F11: ='Hoja de trabajo'!P8 -> 2022-03-18T15:02:28.870 | G11: =_xlfn.CONCAT(TEXT('Hoja de trabajo'!C30,"dd/mm/aaaa"),," ","12:00 Hrs.") -> 30/09/2021 12:00 Hrs. | H11: =_xlfn.CONCAT(TEXT('Hoja de trabajo'!D30,"dd/mm/aaaa"),," ","12:00 Hrs.") -> 29/09/2022 12:00 Hrs.
C12: CP
C13: Telefóno:
C14: Correo electrónico:
B15: DATOS DEL RIESGO | F15: Breve descripción del proyecto:
B16: Ubicación del proyecto: | D16: Torre Levana II Departamento 1504 Piso 15 Dirección: Av. Jose Vasconcelos 640 Zona Santa Engracia. C.P | F16: Reparación y acondicionamiento de inmuebles que no afectan elementos de carga
B17: C.P.:
B18: Alcaldía/Municipio:
B19: Estado:
B20: Obra a realizar: | D20: =IFERROR('Hoja de trabajo'!C6,"") -> Mantenimiento
B21: Actividad: | D21: =IFERROR('Hoja de trabajo'!C8,"") -> Inmuebles, Sistemas de Comunicación, Electricos, Electronicos, de Computo
B22: Valor del contrato: | D22: =IFERROR('Hoja de trabajo'!C22,"") -> 2000000
B23: DESGLOSE DE COBERTURAS
B24: Coberturas Amparadas | F24: Suma Asegurada | G24: Deducible
C25: ='Hoja de trabajo'!B35 -> Cobertura básica | F25: =IF('Hoja de trabajo'!E35="Sí",'Hoja de trabajo'!$G$35,"Excluida") -> 10885 | G25: =IF('Hoja de trabajo'!E35="Sí","10% sobre la pérdida, con mínimo de 150 UMAS"," ") -> 10% sobre la pérdida, con mínimo de 150 UMAS
C26: ='Hoja de trabajo'!B36 -> Personal bajo relación de trabajo | F26: =IF('Hoja de trabajo'!E36="Sí","AMPARADA","EXCLUIDA") -> EXCLUIDA | G26: =IF(F26="Excluida"," ","10% sobre la pérdida, con mínimo de 150 UMAS") -> 
C27: ='Hoja de trabajo'!B37 -> Instalaciones subterráneas | F27: =IF('Hoja de trabajo'!E37="Sí","AMPARADA","EXCLUIDA") -> AMPARADA | G27: =IF(F27="Excluida"," ","10% sobre la pérdida, con mínimo de 150 UMAS") -> 10% sobre la pérdida, con mínimo de 150 UMAS
C28: ='Hoja de trabajo'!B38 -> Trabajos de soldadura | F28: =IF('Hoja de trabajo'!E38="Sí","AMPARADA","EXCLUIDA") -> AMPARADA | G28: 10% sobre la pérdida, con mínimo de 150 UMAS
C29: ='Hoja de trabajo'!B39 -> Carga y descarga | F29: =IF('Hoja de trabajo'!E39="Sí","AMPARADA","EXCLUIDA") -> AMPARADA | G29: 10% sobre la pérdida, con mínimo de 150 UMAS
C30: ='Hoja de trabajo'!B40 -> Demolición | F30: =IF('Hoja de trabajo'!E40="Sí","AMPARADA","EXCLUIDA") -> EXCLUIDA | G30: =IF(F30="Excluida"," ","20% sobre la pérdida, con mínimo de 150 UMAS") -> 
C31: ='Hoja de trabajo'!B41 -> Explosivos | F31: =IF('Hoja de trabajo'!E41="Sí","AMPARADA","EXCLUIDA") -> EXCLUIDA | G31: =IF(F31="Excluida"," ","20% sobre la pérdida, con mínimo de 150 UMAS") -> 
C32: ='Hoja de trabajo'!B42 -> Máquinas de trabajo | F32: =IF('Hoja de trabajo'!E42="Sí","AMPARADA","EXCLUIDA") -> EXCLUIDA
C33: ='Hoja de trabajo'!B43 -> Apuntalamiento | F33: =IF('Hoja de trabajo'!E43="Sí","AMPARADA","EXCLUIDA") -> AMPARADA | G33: =IF(F33="Excluida"," ","20% sobre la pérdida, con mínimo de 150 UMAS") -> 20% sobre la pérdida, con mínimo de 150 UMAS
C34: ='Hoja de trabajo'!B44 -> Sostén a suelos y subsuelos vecinos | F34: =IF('Hoja de trabajo'!E44="Sí","AMPARADA","EXCLUIDA") -> EXCLUIDA | G34: =IF(F34="Excluida"," ","20% sobre la pérdida, con mínimo de 150 UMAS") -> 
C35: ='Hoja de trabajo'!B45 -> RC arrendatario | F35: =IF('Hoja de trabajo'!E45="Sí","AMPARADA","EXCLUIDA") -> AMPARADA | G35: 10% sobre la pérdida, con mínimo de 150 UMAS
C36: ='Hoja de trabajo'!B46 -> RC cruzada por riesgos vecinales | F36: =IF('Hoja de trabajo'!E46="Sí","AMPARADA","EXCLUIDA") -> AMPARADA | G36: =IF(F36="Excluida"," ","20% sobre la pérdida, con mínimo de 150 UMAS") -> 20% sobre la pérdida, con mínimo de 150 UMAS
C37: ='Hoja de trabajo'!B47 -> RC asumida | F37: =IF('Hoja de trabajo'!E47="Sí","AMPARADA","EXCLUIDA") -> AMPARADA | G37: 10% sobre la pérdida, con mínimo de 150 UMAS
C38: ='Hoja de trabajo'!B48 -> Otras obras especiales | F38: =IF('Hoja de trabajo'!E48="Sí","AMPARADA","EXCLUIDA") -> EXCLUIDA
C39: ='Hoja de trabajo'!B49 -> RC contaminación | F39: =IF('Hoja de trabajo'!E49="Sí","AMPARADA","EXCLUIDA") -> EXCLUIDA | G39: =IF(F39="Excluida"," ","20% sobre la pérdida, con mínimo de 150 UMAS") -> 
C40: ='Hoja de trabajo'!B50 -> RC por daños ocasionados a bienes propiedad de terceros | F40: =IF('Hoja de trabajo'!E50="Sí","AMPARADA","EXCLUIDA") -> AMPARADA | G40: 10% sobre la pérdida, con mínimo de 150 UMAS
C41: ='Hoja de trabajo'!B51 -> RC contratistas independientes | F41: =IF('Hoja de trabajo'!E51="Sí","AMPARADA","EXCLUIDA") -> AMPARADA | G41: 10% sobre la pérdida, con mínimo de 150 UMAS
B42: Observaciones | G42: Prima Neta: | H42: =IFERROR('Hoja de trabajo'!$N$55,0) -> 3679.804457
C43: UMA: Unidad de Medida Actualizada Diaria | G43: Recargos: | H43: =IFERROR(VLOOKUP(G8,'Descuentos y recargos'!$M$6:$N$10,2,0)*H42,0) -> 0
G44: Derechos: | H44: =IFERROR(IF(H42<100000,IF($H$6="Nacional",SUM(('Derechos de póliza'!$A$5:$A$12<H42)*('Derechos de póliza'!$B$5:$B$12>=H42)*('Derechos de póliza'!$C$5:$C$12)),SUM(('Derechos de póliza'!$D$5:$D$12<H42)*('Derechos de póliza'!$E$5:$E$12>=#REF!)*('Derechos de póliza'!$F$5:$F$12))),1000),0) -> 200
G45: Subtotal: | H45: =IFERROR(SUM($H$42:$H$44),0) -> 3879.804457
G46: I.V.A.: | H46: =H45*0.16 -> 620.7687131
G47: Prima Total: | H47: =IFERROR(SUM($H$45:$H$46),0) -> 4500.57317
D49: Forma de pago | E49: Importe total | F49: 1er Recibo | G49: No. De recibos subsecuentes | H49: Montos subsecuentes
D50: Semestral | E50: =IF($H$6='Descuentos y recargos'!$N$5, (($H$42*(1+'Descuentos y recargos'!N7))+$H$44)*1.16, (($H$42*(1+'Descuentos y recargos'!O7))+$H$44)*1.16) -> 4671.316097 | F50: =IF($H$6='Descuentos y recargos'!$N$5, ((($H$42*(1+'Descuentos y recargos'!N7))/2)+$H$44)*1.16, (($H$42*(1+'Descuentos y recargos'!O7))+$H$44)*1.16) -> 2451.658048 | G50: 1, cada uno de | H50: =IF($H$6='Descuentos y recargos'!$N$5, ((($H$42*(1+'Descuentos y recargos'!N7))/2))*1.16, (($H$42*(1+'Descuentos y recargos'!O7)))*1.16) -> 2219.658048
D51: Trimestral | E51: =IF($H$6='Descuentos y recargos'!$N$5, (($H$42*(1+'Descuentos y recargos'!N8))+$H$44)*1.16, (($H$42*(1+'Descuentos y recargos'!O8))+$H$44)*1.16) -> 4703.330395 | F51: =IF($H$6='Descuentos y recargos'!$N$5, ((($H$42*(1+'Descuentos y recargos'!N7))/4)+$H$44)*1.16, (($H$42*(1+'Descuentos y recargos'!O7))+$H$44)*1.16) -> 1341.829024 | G51: 3, cada uno de | H51: =IF($H$6='Descuentos y recargos'!$N$5, ((($H$42*(1+'Descuentos y recargos'!N8))/4))*1.16, (($H$42*(1+'Descuentos y recargos'!O8)))*1.16) -> 1117.832599
D52: Bimestral | E52: =IF($H$6='Descuentos y recargos'!$N$5, (($H$42*(1+'Descuentos y recargos'!N9))+$H$44)*1.16, (($H$42*(1+'Descuentos y recargos'!O9))+$H$44)*1.16) -> 4735.344694 | F52: =IF($H$6='Descuentos y recargos'!$N$5, ((($H$42*(1+'Descuentos y recargos'!N7))/6)+$H$44)*1.16, (($H$42*(1+'Descuentos y recargos'!O7))+$H$44)*1.16) -> 971.8860161 | G52: 5, cada uno de | H52: =IF($H$6='Descuentos y recargos'!$N$5, ((($H$42*(1+'Descuentos y recargos'!N9))/6))*1.16, (($H$42*(1+'Descuentos y recargos'!O9)))*1.16) -> 750.557449
D53: Mensual | E53: =IF($H$6='Descuentos y recargos'!$N$5, (($H$42*(1+'Descuentos y recargos'!N10))+$H$44)*1.16, (($H$42*(1+'Descuentos y recargos'!O10))+$H$44)*1.16) -> 4778.030426 | F53: =IF($H$6='Descuentos y recargos'!$N$5, ((($H$42*(1+'Descuentos y recargos'!N7))/12)+$H$44)*1.16, (($H$42*(1+'Descuentos y recargos'!O7))+$H$44)*1.16) -> 601.9430081 | G53: 11, cada uno de | H53: =IF($H$6='Descuentos y recargos'!$N$5, ((($H$42*(1+'Descuentos y recargos'!N10))/12))*1.16, (($H$42*(1+'Descuentos y recargos'!O10)))*1.16) -> 378.8358688
B55: La emisión o, en su caso, la renovación de la póliza, queda sujeta a la entrega de los documentos relacionados con el art. 492 de la LISF, será necesario enviar el formato “Conoce a tu cliente”, firmado por el Asegurado. La presente cotización fue elaborada por Seguros Ve Por Más, S. A. Grupo Financiero Ve Por Más con las tarifas vigentes.
B56: La información contenida en esta cotización no representa garantía ni compromiso alguno por parte de Seguros Ve Por Más, S.A., Grupo Financiero Ve Por Más, ni cualquiera de sus filiales, empleados, funcionarios o prestadores, y no constituye ni constituirá obligación alguna de cumplimiento por parte de Seguros Ve Por Más, S.A., Grupo Financiero Ve Por Más ni cualquiera de sus filiales, empleados, funcionarios o prestadores hacia su clientela.
B57: Esta cotización tiene una vigencia de 15 (quince) días naturales, siempre y cuando los parámetros de esta cotización se mantengan.
B58: "Seguro registrado ante la Comisión Nacional de Seguros y Fianzas con el número CNSF-S0016-0210-2021/CONDUSEF-001552-04 de fecha 31 de mayo de 2021".
C59: Seguros Ve Por Más, S. A. Grupo Financiero Ve Por Más Paseo De La Reforma 243 Piso 16, Col. Cuauhtémoc, C.P. 06500 , Cuauhtémoc, Tel. 55 11 02 18 00 | E59: Página 1 de 1

Sheet Solicitud (hidden)
A1: Instrucciones
A2: Este formato debe ser llenado y firmado por el Solicitante con letra de molde y tinta de un solo color.
A3: Favor de no dejar preguntas ni espacios sin contestar. Este documento no será válido con tachaduras, enmendaduras y de lo declarado no se aceptan cambios posteriores.
A4: Datos personales del Contratante:
A5: Nombre(s) o Razón Social Apellido Paterno Apellido Materno | F5: =Cotización!D5 -> HELMUT SERGIO SCHWARZ GARZA
A7: Número de serie del certificado digital FIEL (cuando se cuente con ella) | G7: Ocupación, Profesión (o Giro)
A9: R.F.C. | E9: CURP (cuando se cuente con ella) | G9: Correo electrónico
A11: Teléfono(s) | E11: País de Nacimiento | G11: Nacionalidad
M12: =7500*20 -> 150000
A13: Fecha de Nacimiento (Personas Físicas) | F13: Fecha de Constitución (Personas Morales)
A14: (dd/mm/aaaa) | F14: (dd/mm/aaaa)
A15: Domicilio: Calle | C15: No. Exterior | F15: No. Interior | I15: Colonia
A17: Código Postal | C17: Alcaldía o Municipio | F17: Ciudad | I17: Estado
A19: Datos de la póliza
A20: Póliza Nueva | D20: Vigencia: | F20: desde | H20: Hasta
A21: Renueva | D21: (dd/mm/aaaa) (dd/mm/aaaa)
A22: Póliza No. ________
A24: Pago de la prima
A25: Forma de pago: | C25: Mensual | E25: Trimestral | G25: Semestral | I25: Contado
A26: Moneda: | C26: Nacional | E26: Dólares
A27: Método de pago: | C27: Tarjeta de Crédito | E27: Cuenta CLABE | G27: Pago Referenciado | I27: Cargo por única ocasión
C28: Meses sin intereses*
A29: *La promoción a meses sin intereses está sujeta a disponibilidad en el momento del cobro.
A30: Cesación de los efectos del contrato por falta de pago de prima
A31: En caso de que esta solicitud sea aceptada y se emita la póliza correspondiente, le recordamos que en caso de que no hubiera sido pagada la prima dentro del periodo de gracia estipulado en la carátula de póliza, los efectos del contrato cesarán automáticamente a las doce horas del último día de este periodo.
A32: En caso de que no se señale el periodo de gracia en la carátula de póliza, se aplicará un plazo de treinta días naturales siguientes a la fecha de su vencimiento, de conformidad con lo estipulado en el artículo 40 de la Ley sobre el Contrato de Seguro.
A33: Datos del seguro
A34: Ubicación del proyecto
A35: Domicilio: Calle | C35: No. Exterior | F35: No. Interior | I35: Colonia
A37: Código Postal | C37: Alcaldía o Municipio | F37: Ciudad | I37: Estado
A39: Descripción de los trabajos a realizar:
A50: Nota: En caso de necesitar más espacio para la descripción, favor de adjuntar documentos anexos con la información detallada
A51: Valor Total de(l) contrato(s):
A54: Duración del proyecto:
A57: Experiencia con la que cuenta para la obra por realizar:
A60: Colindantes:
A63: Indique el tipo de maquinaria de construcción a emplear:
A65: Indique: | C65: Es propia | E65: Es arrendada | G65: Con operador | I65: Sin operador
A67: Sección I Responsabilidad civil
B68: Seleccionar la(s) cobertura(s) | H68: Indicar Sí / No | J68: Suma Asegurada
B69: Cobertura básica | H69: Amparada | J69: ='Hoja de trabajo'!G35 -> 10885
B70: Coberturas adicionales | H70: Indicar Sí / No | J70: Sublímite
B71: 1. Personal bajo relación de trabajo | H71: ='Hoja de trabajo'!E36 -> No | J71: ='Hoja de trabajo'!G36 -> 0
B72: 2. Instalaciones subterráneas | H72: ='Hoja de trabajo'!E37 -> Sí | J72: ='Hoja de trabajo'!G37 -> 0
B73: 3. Trabajos de soldadura | H73: ='Hoja de trabajo'!E38 -> Sí | J73: ='Hoja de trabajo'!G38 -> 0
B74: 4. Carga y descarga | H74: ='Hoja de trabajo'!E39 -> Sí | J74: ='Hoja de trabajo'!G39 -> 0
B75: 5. Demolición | H75: ='Hoja de trabajo'!E40 -> No | J75: ='Hoja de trabajo'!G40 -> 0
B76: 6. Explosivos | H76: ='Hoja de trabajo'!E41 -> No | J76: ='Hoja de trabajo'!G41 -> 0
B77: 7. Máquinas de trabajo | H77: ='Hoja de trabajo'!E42 -> No | J77: ='Hoja de trabajo'!G42 -> 0
B78: 8. Apuntalamiento | H78: ='Hoja de trabajo'!E43 -> Sí | J78: ='Hoja de trabajo'!G43 -> 0
B79: 9. Sostén a suelos y subsuelos vecinos. | H79: ='Hoja de trabajo'!E44 -> No | J79: ='Hoja de trabajo'!G44 -> 0
B80: 10. Arrendatario | H80: ='Hoja de trabajo'!E45 -> Sí | J80: ='Hoja de trabajo'!G45 -> 0
B81: 11. Cruzada por riesgos vecinales | H81: ='Hoja de trabajo'!E46 -> Sí | J81: ='Hoja de trabajo'!G46 -> 0
B82: 12. Asumida (caso por caso) | H82: ='Hoja de trabajo'!E47 -> Sí | J82: ='Hoja de trabajo'!G47 -> 0
B83: 13. Otras obras especiales | H83: ='Hoja de trabajo'!E48 -> No | J83: ='Hoja de trabajo'!G48 -> 0
B84: Coberturas que pueden ser contratadas por convenio expreso | H84: Indicar Sí / No | J84: Sublímite
B85: 1. Responsabilidad civil contaminación | H85: ='Hoja de trabajo'!E49 -> No | J85: ='Hoja de trabajo'!G49 -> 0
B86: 2. Responsabilidad civil por daños ocasionados a bienes propiedad de terceros | H86: ='Hoja de trabajo'!E50 -> Sí | J86: ='Hoja de trabajo'!G50 -> 0
B87: 3. Responsabilidad civil contratistas independientes (caso por caso) | H87: ='Hoja de trabajo'!E51 -> Sí | J87: ='Hoja de trabajo'!G51 -> 0
A89: Información adicional
A90: Siniestralidad
A91: En los últimos tres años ¿ha tenido algún siniestro? □ Sí □ No
A92: Describir la pérdida y especificar monto de esta: ____________________________
A94: Otros Seguros
A95: ¿Cuenta con algún seguro similar al contrato de la presente solicitud? □ Sí □ No
A97: Tipo de Seguro: | D97: Vigencia: | G97: Suma Asegurada: | J97: Prima:
A101: Aviso de privacidad
A102: Aviso de privacidad Seguros Ve por Más, S.A. Grupo Financiero Ve por Más, con domicilio en Paseo de la Reforma No. 243, Piso 16 Colonia Cuauhtémoc, C.P. 06500, Ciudad de México, Le informa que los datos personales y/o datos personales sensibles que se recaban de usted, serán utilizados para las siguientes finalidades que son necesarias para el servicio y/o producto que solicita: La realización de todas y cada una de las operaciones y la prestación de los servicios, así como la celebración de los demás actos que Seguros Ve por Más puede realizar conforme a la legislación que les sea aplicable y a sus estatutos sociales la identificación y contacto del titular de los datos personales; para la evaluación de su solicitud de seguro y selección de riesgos, y en su caso, la emisión del contrato de seguro, la aplicación de exámenes de estado general de salud, previo a la contratación del seguro; para realizar las gestiones de cobro que son inherentes a la contratación o renovación del seguro; para el trámite y seguimiento de sus solicitudes de pago de siniestros, administración, mantenimiento y renovación de la póliza de seguro; las revisiones y correcciones requeridas por actualización de datos o para mayor conocimiento de los titulares y sus operaciones, tanto para efectos legales como de prevención o seguridad; la comunicación con los clientes, proveedores, consejeros y auditores externos, actuales o anteriores, para tratar cualquier tema relacionado con asuntos contractuales, comerciales, laborales, de negocioso con sus datos personales o el presente aviso de privacidad; las consultas, investigaciones y revisiones en relación a cualquier queja, reclamación o aclaración; la atención de requerimientos de cualquier autoridad competente conforme a la legislación aplicable a la entidad financiera; cualquier actividad complementaria o auxiliar necesaria para la realización de los fines anteriores.
A103: De manera adicional, se utilizará su información personal para las siguientes finalidades que no son necesarias para el servicio o producto solicitado, pero que permiten y facilitan brindarle un mejor servicio:
A104: La promoción de productos, servicios, beneficios adicionales, descuentos, promociones, bonificaciones, concursos, estudios de mercado, sorteos y publicidad en general, ofrecidos por las empresas integrantes del grupo financiero o relacionado con las mismas o terceros nacionales o extranjeros con quienes cualquiera de dichas empresas mantengan alianzas comerciales, la realización de encuestas de calidad, servicio o de cualquier otro tipo relacionado con los productos y servicios que se ofrecen y/o prestan, así como el desarrollo e implementación de procesos de análisis de información y estadísticos que se deriven de dichas encuestas. En caso de que usted no desee que sus datos personales sean tratados ni transferidos para estos fines adicionales, usted contará con 5 días hábiles a partir de la recepción de este aviso, para manifestar su negativa al siguiente correo: datospersonales@vepormas.com.mx, de lo contrario se entenderá que usted acepta el uso de sus datos para estos fines.
A105: Para conocer mayor información sobre los términos y condiciones en que serán tratados sus datos personales y la forma en que podrá ejercer sus derechos arco, puede consultar nuestro aviso de privacidad integral en http://www.vepormas.com, dentro de la página de Seguros Ve por Más, seleccionando el apartado “su información personal está segura con Ve por Más”. El titular de los datos personales manifiesta haber leído y estar de acuerdo con los términos del aviso de privacidad, conociendo y aceptando la finalidad de la recolección, el tratamiento de sus datos personales y personales sensibles y transferencia de los mismos a través de su firma autógrafa o electrónica.
A106: Se entenderá que el solicitante titular y/o contratante consiente tácitamente el tratamiento de su información personal en los términos indicados en el presente aviso de privacidad si no manifiesta su oposición al mismo. He leído y me doy por enterado del aviso de privacidad que antecede en relación con la póliza de seguro.
A107: Lugar y fecha (dd/mm/aaaa)
A108: ________________________________________________
A110: Declaraciones del solicitante
A111: Hago constar que la información y datos asentados en esta solicitud son verídicos y exactos, y que estoy de acuerdo en que sirvan de evaluación para el seguro que solicito por lo que en caso de que alguno de los datos proporcionados resulte falso o inexacto, estoy consiente en que el contrato será rescindido de pleno derecho, de conformidad con lo dispuesto por el artículo 47 de la Ley sobre el Contrato de Seguro.
A112: Cualquier omisión o inexacta declaración de los hechos a que se refieren los artículos 8, 9 y 10 de la Ley sobre el Contrato de Seguro, facultará a Seguros Ve Por Más, S.A., Grupo Financiero Ve Por Más para considerar rescindido de pleno derecho el contrato de seguro, aunque no haya influido en la realización del siniestro.
A113: Declaro de manera libre y espontánea, bajo protesta de decir verdad, que los recursos destinados para el apego de la prima de seguro que en su caso llegue a celebrar con motivo de la presente solicitud no son de procedencia ilícita.
A114: Declaraciones adicionales del solicitante
A115: Previa lectura y debidamente enterados de las condiciones y obligaciones que establece esta solicitud, confirmo haber declarado los datos exactos para la correcta evaluación de la misma.
A116: Asimismo, autorizo a las Compañías de Seguros a las que previamente he solicitado pólizas, para que proporcionen a Seguros Ve Por Más, S.A., Grupo Financiero Ve Por Más, la información de su conocimiento, para la correcta evaluación de esta solicitud y a su vez a Seguros Ve Por Más , S.A., Grupo Financiero Ve Por Más, para que proporcione a cualquier otra empresa del ramo, la información que se derive de esta solicitud y de otras que sean de su conocimiento, a efecto que pueda evaluar cualquier otra propuesta de contratación de seguro del sector que le sea solicitada por mi persona.
A117: Estoy de acuerdo que, en caso de ser aceptada esta solicitud, la misma formará parte del contrato de seguro, cuyas condiciones generales, me serán entregadas con el método elegido más adelante; mismas que declaro conocer y manifiesto me han sido explicadas y estoy de acuerdo con ellas.
A118: Lugar y fecha (dd/mm/aaaa)
A119: Apreciable solicitante, en caso de que sea aceptada su solicitud, le agradecemos nos indique cual es la mejor forma de recibir condiciones generales del contrato en cuestión. Le invitamos a sumarse al cuidado de la naturaleza evitando el uso del papel aceptando medio electrónico para su recepción.
A120: □ Vía correo electrónico a la siguiente dirección ________________________________
A121: □ Impresión en papel
A122: Estoy de acuerdo que, en caso de ser aceptada esta solicitud, la misma formará parte del contrato de seguro cuyas condiciones generales serán entregadas con el método elegido en la sección de arriba, la cual declaro conocer y manifiesto me han sido explicadas y estoy de acuerdo con ellas.
A123: En caso de solicitar la recepción de las condiciones generales vía correo electrónico, dichas condiciones generales se tendrán por recibidas desde el momento en que Seguros Ve Por Más, S.A., Grupo Financiero Ve Por Más, realice su envío al solicitante. Lo anterior en el entendido que el correo electrónico señalado en la presente solicitud es consultado periódicamente por el solicitante y/o usuario de la cuenta o bien por una persona que la entrega física de las condiciones generales de Seguros Ve Por Más, S.A., Grupo Financiero Ve Por Más hacia el solicitante de la póliza del seguro.
A124: Igualmente, acepto y autorizo a Seguros Ve Por Más, S.A., Grupo Financiero Ve Por Más para enviar al mencionado correo electrónico cualquier otra comunicación y/o notificación que pudiera derivar de la solicitud y en su caso contratación del seguro, incluyendo sin limitar: a) Requerimientos de información; b) Reclamaciones; c) Póliza; d) Endosos; e) Rescisiones; f) Procedencia e importancia de siniestros.
A125: Cualquier cambio en la dirección de correo electrónico del solicitante, así como de Seguros Ve Por Más, S.A., Grupo Financiero Ve Por Más, deberá ser comunicado por escrito.
A126: En caso de no hacerlo, todos los avisos, notificaciones y demás diligencias que se hagan se efectuarán en el correo electrónico indicado en esta solicitud y surtirán plenamente efectos. Finalmente, declaro que el agente de seguros me ha informado de manera amplia y detallada sobre el alcance real de la obertura y la forma de conservarla o darla por terminada.
A127: ______________________________ ______________________________
A128: Firma del Contratante Firma del Solicitante Titular
A129: Datos del Agente
A130: De conformidad con lo descrito en el Artículo 96 de la Ley de Instituciones de Seguros y de Fianzas, declaro haber informado al solicitante el alcance real de la cobertura y la forma de conservarla o darla por terminada, de manera amplia y detallada.
A131: Nombre(s) Apellido Paterno Apellido Materno
A133: R.F.C. | D133: CURP | G133: Clave de Agente | J133: Correo Electrónico
A135: 1. ¿Tiene algún parentesco con el solicitante? □ Sí □ No
A136: 2. Informo que entrevisté al contratante y/o solicitante/titular de esta solicitud del seguro, asimismo cotejé contra original, información contenida en la identificación oficial y documentos que me fueron entregados para el trámite de este seguro.
A137: ___________________________________
A138: Agente
A139: Nombre y firma
A140: Estas preguntas deberán ser contestadas sólo por el contratante (sólo si se trata de persona física)
A141: 1. ¿Desempeña o ha desempeñado alguno de estos cargos en el sexenio actual o anterior?
A142: Diputado local o federal, Director General de la C.F.E., Director General de PEMEX, Gobernador de Estado, Jefe de Gobierno de la CDMX, Ministro de la Suprema Corte de Justicia de la Nación, Presidente de la República, Presidente de Partido Político Registrado en el INE (antes IFE), Procurador General de la República, Procurador de Justicia de los Estados, Secretario de Finanzas del Distrito Federal, Secretario de Finanzas de los Estados, Secretario de Gobierno de los Estados, Senador (para los extranjeros, presidentes o mandatarios).
A143: □ Sí □ No En caso afirmativo indique cual _____________________________
A144: 2. ¿Realiza alguna de estas actividades?
A145: Comerciante de: metales preciosos, antigüedades, joyas, objetos de arte, piedras preciosas, productos militares de alta sofisticación, agentes aduanales, casinos, loterías, juegos de azar, centros nocturnos, distribución de armas, inmobiliaria, organizaciones de caridad, pirámides, prestamistas, producción de armas, consultor financiero.
A146: □ Sí □ No En caso afirmativo indique cual _____________________________
A147: 3. ¿Usted ha estado relacionado en algún proceso penal?
A148: □ Sí □ No En caso afirmativo indique cual _____________________________
A149: Para todos los efectos legales que pueda tener esta solicitud, declaro que todas las respuestas contenidas en las mismas. Son verídicas y están completas, reconociendo que constituyen parte del contrato de seguro aceptando en consecuencia la obligación de pagar la prima y ajustes correspondientes al contrato.
A150: Artículo 25. Si el contenido de la póliza o sus modificaciones no concordaren con la oferta, el asegurado podrá pedir la rectificación correspondiente dentro de los treinta días que sigan al día en que reciba la póliza. Transcurrido este plazo se considerarán aceptadas las estipulaciones de la póliza o de sus modificaciones.
A151: Este documento sólo constituye una solicitud de seguro y, por lo tanto, no representa garantía alguna de que la misma será aceptada por la Compañía, ni de que, en caso de aceptarse, la aceptación concuerde totalmente con los términos de la solicitud.
A152: Se informa que el producto ligado a esta solicitud cuenta con exclusiones y limitantes, mismas que puede consultar dentro de las Condiciones Generales del mismo producto, que se encuentran en nuestra página de internet www.vepormas.com. Se hace del conocimiento de nuestros clientes que podrán consultar todos los preceptos y referencias legales mencionadas en el contrato, en nuestra página de internet www.vepormas.com, Condiciones Generales, sección, Anexo denominado Preceptos Legales.
A153: Para cualquier aclaración o duda no resultas en relación a su seguro, contacte a la Unidad Especializada de nuestra Compañía ubicada en Avenida Paseo de la Reforma, número 243 Piso 16, Colonia Cuauhtémoc, Alcaldía Cuauhtémoc, Ciudad de México, C.P. 06500, a los teléfonos 55 1102 1919 o al 800 8376 7627 elegir la opción 0 y solicitar ser canalizado a la UNE, en un horario de lunes a viernes de 9:00 a 18:00 horas; al correo electrónico aclaraciones.une@segurosvepormas.com o visite www.vepormas.com; o bien contactar a CONDUSEF en Avenida Insurgentes Sur, número 762, colonia Del Valle, Alcaldía Benito Juárez, Ciudad de México, C.P. 03100, al teléfono (55) 5340 0999 en la CDMX y en el interior de la República al 800 999 8080; correo electrónico asesoria@condusef.gob.mx, o visite la página www.gob.mx/condusef.
A154: En cumplimiento a lo dispuesto en el artículo 202 de la Ley de Instituciones de Seguros y de Fianzas, la documentación contractual y la nota técnica que integran este producto de seguro, quedaron registradas ante la Comisión Nacional de Seguros y Fianzas, a partir del día __ de _____ de ____, con el número ____ -____-____-__/CONDUSEF-______-__.

Sheet Hoja1

Sheet CP (hidden)
A1: CODIGOS POSTALES | E1: ZONA TEV | F1: ZONA FHM | H1: Forma de pago | I1: Moneda
A2: Código Postal | B2: Colonia | C2: Municipio | D2: Estado | E2: Zona Terremoto Tarifa AMIS | F2: Zona Hidro Tarifa AMIS | H2: Contado | I2: Nacional | J2: Sí
A3: 20000 | B3: Zona Centro | C3: Aguascalientes | D3: Aguascalientes | E3: A | F3: 3 | H3: Semestral | I3: Dólares | J3: No
A4: 20008 | B4: Delegación de La Secretaria de Comercio y Fomento Industrial | C4: Aguascalientes | D4: Aguascalientes | E4: A | F4: 3 | H4: Trimestral
A5: 20009 | B5: Palacio de Gobierno del Estado de Aguascalientes | C5: Aguascalientes | D5: Aguascalientes | E5: A | F5: 3 | H5: Mensual
A6: 20010 | B6: San Cayetano | C6: Aguascalientes | D6: Aguascalientes | E6: A | F6: 3
A7: 20010 | B7: Colinas del Rio | C7: Aguascalientes | D7: Aguascalientes | E7: A | F7: 3
A8: 20010 | B8: Las Brisas | C8: Aguascalientes | D8: Aguascalientes | E8: A | F8: 3
A9: 20010 | B9: Olivares Santana | C9: Aguascalientes | D9: Aguascalientes | E9: A | F9: 3
A10: 20010 | B10: Ramon Romo Franco | C10: Aguascalientes | D10: Aguascalientes | E10: A | F10: 3
A11: 20016 | B11: La Fundición | C11: Aguascalientes | D11: Aguascalientes | E11: A | F11: 3
A12: 20016 | B12: Los Sauces | C12: Aguascalientes | D12: Aguascalientes | E12: A | F12: 3
A13: 20016 | B13: Fundición II | C13: Aguascalientes | D13: Aguascalientes | E13: A | F13: 3
A14: 20016 | B14: Colinas de San Ignacio | C14: Aguascalientes | D14: Aguascalientes | E14: A | F14: 3
A15: 20018 | B15: Línea de Fuego | C15: Aguascalientes | D15: Aguascalientes | E15: A | F15: 3
A16: 20020 | B16: Buenos Aires | C16: Aguascalientes | D16: Aguascalientes | E16: A | F16: 3
A17: 20020 | B17: Las Arboledas | C17: Aguascalientes | D17: Aguascalientes | E17: A | F17: 3
A18: 20020 | B18: Circunvalación Norte | C18: Aguascalientes | D18: Aguascalientes | E18: A | F18: 3
A19: 20020 | B19: Villas de San Francisco | C19: Aguascalientes | D19: Aguascalientes | E19: A | F19: 3
A20: 20029 | B20: Villas de La Universidad | C20: Aguascalientes | D20: Aguascalientes | E20: A | F20: 3
A21: 20030 | B21: Gremial | C21: Aguascalientes | D21: Aguascalientes | E21: A | F21: 3
A22: 20030 | B22: Industrial | C22: Aguascalientes | D22: Aguascalientes | E22: A | F22: 3
A23: 20030 | B23: El Sol | C23: Aguascalientes | D23: Aguascalientes | E23: A | F23: 3
A24: 20040 | B24: Curtidores | C24: Aguascalientes | D24: Aguascalientes | E24: A | F24: 3
A25: 20040 | B25: Altavista | C25: Aguascalientes | D25: Aguascalientes | E25: A | F25: 3
A26: 20040 | B26: La Concordia | C26: Aguascalientes | D26: Aguascalientes | E26: A | F26: 3
A27: 20040 | B27: Miravalle | C27: Aguascalientes | D27: Aguascalientes | E27: A | F27: 3
A28: 20040 | B28: Panorama | C28: Aguascalientes | D28: Aguascalientes | E28: A | F28: 3
A29: 20049 | B29: Colinas del Poniente | C29: Aguascalientes | D29: Aguascalientes | E29: A | F29: 3
A30: 20050 | B30: La Fe | C30: Aguascalientes | D30: Aguascalientes | E30: A | F30: 3
A31: 20050 | B31: México | C31: Aguascalientes | D31: Aguascalientes | E31: A | F31: 3
A32: 20050 | B32: San Pablo | C32: Aguascalientes | D32: Aguascalientes | E32: A | F32: 3
A33: 20050 | B33: Primavera | C33: Aguascalientes | D33: Aguascalientes | E33: A | F33: 3
A34: 20050 | B34: Bugambilias | C34: Aguascalientes | D34: Aguascalientes | E34: A | F34: 3
A35: 20050 | B35: Del Carmen | C35: Aguascalientes | D35: Aguascalientes | E35: A | F35: 3
A36: 20059 | B36: Guadalupe | C36: Aguascalientes | D36: Aguascalientes | E36: A | F36: 3
A37: 20060 | B37: Moderno | C37: Aguascalientes | D37: Aguascalientes | E37: A | F37: 3
A38: 20064 | B38: Valle del Rio San Pedro | C38: Aguascalientes | D38: Aguascalientes | E38: A | F38: 3
A39: 20070 | B39: San Marcos | C39: Aguascalientes | D39: Aguascalientes | E39: A | F39: 3
A40: 20070 | B40: Guadalupe Posada | C40: Aguascalientes | D40: Aguascalientes | E40: A | F40: 3
A41: 20070 | B41: San Marcos | C41: Aguascalientes | D41: Aguascalientes | E41: A | F41: 3
A42: 20078 | B42: San Marcos | C42: Aguascalientes | D42: Aguascalientes | E42: A | F42: 3
A43: 20080 | B43: Modelo | C43: Aguascalientes | D43: Aguascalientes | E43: A | F43: 3
A44: 20080 | B44: Residencial del Valle I | C44: Aguascalientes | D44: Aguascalientes | E44: A | F44: 3
A45: 20089 | B45: Residencial del Valle II | C45: Aguascalientes | D45: Aguascalientes | E45: A | F45: 3
A46: 20100 | B46: Campestre La Herradura | C46: Aguascalientes | D46: Aguascalientes | E46: A | F46: 3
A47: 20100 | B47: Los Vergeles | C47: Aguascalientes | D47: Aguascalientes | E47: A | F47: 3
A48: 20100 | B48: Campestre 2a. Sección | C48: Aguascalientes | D48: Aguascalientes | E48: A | F48: 3
A49: 20100 | B49: La Querencia | C49: Aguascalientes | D49: Aguascalientes | E49: A | F49: 3
A50: 20100 | B50: Jardines del Campestre | C50: Aguascalientes | D50: Aguascalientes | E50: A | F50: 3
A51: 20100 | B51: Club Campestre | C51: Aguascalientes | D51: Aguascalientes | E51: A | F51: 3
A52: 20100 | B52: Rancho San Antonio | C52: Aguascalientes | D52: Aguascalientes | E52: A | F52: 3
A53: 20100 | B53: Campestre 1a. Sección | C53: Aguascalientes | D53: Aguascalientes | E53: A | F53: 3
A54: 20110 | B54: Valle del Campestre | C54: Aguascalientes | D54: Aguascalientes | E54: A | F54: 3
A55: 20110 | B55: Las Cavas | C55: Aguascalientes | D55: Aguascalientes | E55: A | F55: 3
A56: 20110 | B56: Granjas del Campestre | C56: Aguascalientes | D56: Aguascalientes | E56: A | F56: 3
A57: 20110 | B57: Puerto las Hadas | C57: Aguascalientes | D57: Aguascalientes | E57: A | F57: 3
A58: 20110 | B58: Talamantes Ponce | C58: Aguascalientes | D58: Aguascalientes | E58: A | F58: 3
A59: 20110 | B59: Villas de Montenegro | C59: Aguascalientes | D59: Aguascalientes | E59: A | F59: 3
A60: 20115 | B60: Villa de las Trojes | C60: Aguascalientes | D60: Aguascalientes | E60: A | F60: 3
A61: 20115 | B61: Trojes de Oriente 1a Sección | C61: Aguascalientes | D61: Aguascalientes | E61: A | F61: 3
A62: 20115 | B62: Valle de las Trojes | C62: Aguascalientes | D62: Aguascalientes | E62: A | F62: 3
A63: 20115 | B63: Trojes de Oriente 2a Sección | C63: Aguascalientes | D63: Aguascalientes | E63: A | F63: 3
A64: 20115 | B64: La Paloma | C64: Aguascalientes | D64: Aguascalientes | E64: A | F64: 3
A65: 20115 | B65: Villas de San Nicolás | C65: Aguascalientes | D65: Aguascalientes | E65: A | F65: 3
A66: 20115 | B66: Barrio de Santiago | C66: Aguascalientes | D66: Aguascalientes | E66: A | F66: 3
A67: 20116 | B67: La Troje | C67: Aguascalientes | D67: Aguascalientes | E67: A | F67: 3
A68: 20116 | B68: Trojes de Alonso | C68: Aguascalientes | D68: Aguascalientes | E68: A | F68: 3
A69: 20116 | B69: Santa Fe | C69: Aguascalientes | D69: Aguascalientes | E69: A | F69: 3
A70: 20117 | B70: Aguascalientes 2000 | C70: Aguascalientes | D70: Aguascalientes | E70: A | F70: 3
A71: 20118 | B71: Trojes del Sol | C71: Aguascalientes | D71: Aguascalientes | E71: A | F71: 3
A72: 20118 | B72: Los Jarales | C72: Aguascalientes | D72: Aguascalientes | E72: A | F72: 3
A73: 20118 | B73: Valle del Campanario | C73: Aguascalientes | D73: Aguascalientes | E73: A | F73: 3
A74: 20118 | B74: Las Misiones | C74: Aguascalientes | D74: Aguascalientes | E74: A | F74: 3
A75: 20118 | B75: Cerrada El Molino | C75: Aguascalientes | D75: Aguascalientes | E75: A | F75: 3
A76: 20118 | B76: Misión del Campanario | C76: Aguascalientes | D76: Aguascalientes | E76: A | F76: 3
A77: 20118 | B77: Cerrada del Valle | C77: Aguascalientes | D77: Aguascalientes | E77: A | F77: 3
A78: 20118 | B78: Valle Real | C78: Aguascalientes | D78: Aguascalientes | E78: A | F78: 3
A79: 20118 | B79: Terzetto | C79: Aguascalientes | D79: Aguascalientes | E79: A | F79: 3
A80: 20118 | B80: Trojes de Kristal | C80: Aguascalientes | D80: Aguascalientes | E80: A | F80: 3
A81: 20118 | B81: Las Trojes | C81: Aguascalientes | D81: Aguascalientes | E81: A | F81: 3
A82: 20118 | B82: Cerrada de La Misión | C82: Aguascalientes | D82: Aguascalientes | E82: A | F82: 3
A83: 20119 | B83: Lomas del Campestre 2a Sección | C83: Aguascalientes | D83: Aguascalientes | E83: A | F83: 3
A84: 20119 | B84: Villas del Campestre | C84: Aguascalientes | D84: Aguascalientes | E84: A | F84: 3
A85: 20119 | B85: Los Calicantos | C85: Aguascalientes | D85: Aguascalientes | E85: A | F85: 3
A86: 20120 | B86: Jardines de La Concepción 1a Sección | C86: Aguascalientes | D86: Aguascalientes | E86: A | F86: 3
A87: 20120 | B87: Jardines de La Concepción 2a Sección | C87: Aguascalientes | D87: Aguascalientes | E87: A | F87: 3
A88: 20120 | B88: Rinconada los Bosques | C88: Aguascalientes | D88: Aguascalientes | E88: A | F88: 3
A89: 20120 | B89: Los Bosques | C89: Aguascalientes | D89: Aguascalientes | E89: A | F89: 3
A90: 20123 | B90: Arroyo El Molino | C90: Aguascalientes | D90: Aguascalientes | E90: A | F90: 3
A91: 20124 | B91: Galerías | C91: Aguascalientes | D91: Aguascalientes | E91: A | F91: 3
A92: 20124 | B92: Residencial Altaria | C92: Aguascalientes | D92: Aguascalientes | E92: A | F92: 3
A93: 20126 | B93: Villa de Nuestra Señora de La Asunción Sector San Marcos | C93: Aguascalientes | D93: Aguascalientes | E93: A | F93: 3
A94: 20126 | B94: Privada Guadalupe | C94: Aguascalientes | D94: Aguascalientes | E94: A | F94: 3
A95: 20126 | B95: Villas de La Convención | C95: Aguascalientes | D95: Aguascalientes | E95: A | F95: 3
A96: 20126 | B96: Lomas de La Asunción | C96: Aguascalientes | D96: Aguascalientes | E96: A | F96: 3
A97: 20126 | B97: Villa de Nuestra Señora de La Asunción Sector Encino | C97: Aguascalientes | D97: Aguascalientes | E97: A | F97: 3
A98: 20126 | B98: Villa de Nuestra Señora de La Asunción Sector Alameda | C98: Aguascalientes | D98: Aguascalientes | E98: A | F98: 3
A99: 20126 | B99: San José de Pozo Bravo | C99: Aguascalientes | D99: Aguascalientes | E99: A | F99: 3
A100: 20126 | B100: Villa Notre Dame | C100: Aguascalientes | D100: Aguascalientes | E100: A | F100: 3
A101: 20126 | B101: Constitución | C101: Aguascalientes | D101: Aguascalientes | E101: A | F101: 3
A102: 20126 | B102: Pozo Bravo Norte | C102: Aguascalientes | D102: Aguascalientes | E102: A | F102: 3
A103: 20126 | B103: Villa de Nuestra Señora de La Asunción Sector Guadalupe | C103: Aguascalientes | D103: Aguascalientes | E103: A | F103: 3
A104: 20126 | B104: Villa de Nuestra Señora de La Asunción Sector Estación | C104: Aguascalientes | D104: Aguascalientes | E104: A | F104: 3
A105: 20126 | B105: Residencial las Plazas | C105: Aguascalientes | D105: Aguascalientes | E105: A | F105: 3
A106: 20126 | B106: Montebello Della Stanza | C106: Aguascalientes | D106: Aguascalientes | E106: A | F106: 3
A107: 20126 | B107: Soberana Convención Revolucionaria | C107: Aguascalientes | D107: Aguascalientes | E107: A | F107: 3
A108: 20126 | B108: Villa Loma Dorada | C108: Aguascalientes | D108: Aguascalientes | E108: A | F108: 3
A109: 20126 | B109: Libertad | C109: Aguascalientes | D109: Aguascalientes | E109: A | F109: 3
A110: 20126 | B110: Natura | C110: Aguascalientes | D110: Aguascalientes | E110: A | F110: 3
A111: 20126 | B111: Rinconada Pozo Bravo | C111: Aguascalientes | D111: Aguascalientes | E111: A | F111: 3
A112: 20126 | B112: Pozo Bravo Sur | C112: Aguascalientes | D112: Aguascalientes | E112: A | F112: 3
A113: 20126 | B113: Los Naranjos | C113: Aguascalientes | D113: Aguascalientes | E113: A | F113: 3
A114: 20126 | B114: Jardines de Montebello | C114: Aguascalientes | D114: Aguascalientes | E114: A | F114: 3
A115: 20126 | B115: Villa Teresa | C115: Aguascalientes | D115: Aguascalientes | E115: A | F115: 3
A116: 20127 | B116: Bosques del Prado Norte | C116: Aguascalientes | D116: Aguascalientes | E116: A | F116: 3
A117: 20129 | B117: Lomas del Campestre 1a Sección | C117: Aguascalientes | D117: Aguascalientes | E117: A | F117: 3
A118: 20130 | B118: Fátima | C118: Aguascalientes | D118: Aguascalientes | E118: A | F118: 3
A119: 20130 | B119: Primo Verdad | C119: Aguascalientes | D119: Aguascalientes | E119: A | F119: 3
A120: 20130 | B120: Unidad Ganadera | C120: Aguascalientes | D120: Aguascalientes | E120: A | F120: 3
A121: 20130 | B121: Nueva Rinconada | C121: Aguascalientes | D121: Aguascalientes | E121: A | F121: 3
A122: 20130 | B122: Puerta Navarra | C122: Aguascalientes | D122: Aguascalientes | E122: A | F122: 3
A123: 20130 | B123: Palmas del Pedregal | C123: Aguascalientes | D123: Aguascalientes | E123: A | F123: 3
A124: 20130 | B124: Residencial Campestre Club de Golf Norte | C124: Aguascalientes | D124: Aguascalientes | E124: A | F124: 3
A125: 20130 | B125: Residencial Campestre Club de Golf Sur | C125: Aguascalientes | D125: Aguascalientes | E125: A | F125: 3
A126: 20130 | B126: Palma Real | C126: Aguascalientes | D126: Aguascalientes | E126: A | F126: 3
A127: 20130 | B127: Bosques del Prado Sur | C127: Aguascalientes | D127: Aguascalientes | E127: A | F127: 3
A128: 20130 | B128: Independencia de México | C128: Aguascalientes | D128: Aguascalientes | E128: A | F128: 3
A129: 20130 | B129: El Roble | C129: Aguascalientes | D129: Aguascalientes | E129: A | F129: 3
A130: 20130 | B130: San José del Arenal | C130: Aguascalientes | D130: Aguascalientes | E130: A | F130: 3
A131: 20135 | B131: Centro Distribuidor de Básicos | C131: Aguascalientes | D131: Aguascalientes | E131: A | F131: 3
A132: 20135 | B132: Agropecuario | C132: Aguascalientes | D132: Aguascalientes | E132: A | F132: 3
A133: 20136 | B133: La Rinconada | C133: Aguascalientes | D133: Aguascalientes | E133: A | F133: 3
A134: 20137 | B134: El Plateado | C134: Aguascalientes | D134: Aguascalientes | E134: A | F134: 3
A135: 20138 | B135: Villas del Vergel | C135: Aguascalientes | D135: Aguascalientes | E135: A | F135: 3
A136: 20138 | B136: Residencial Pulgas Pandas Sur | C136: Aguascalientes | D136: Aguascalientes | E136: A | F136: 3
A137: 20138 | B137: Residencial Pulgas Pandas Norte | C137: Aguascalientes | D137: Aguascalientes | E137: A | F137: 3
A138: 20138 | B138: Cerrada San Miguel | C138: Aguascalientes | D138: Aguascalientes | E138: A | F138: 3
A139: 20140 | B139: Andrea | C139: Aguascalientes | D139: Aguascalientes | E139: A | F139: 3
A140: 20140 | B140: Morelos | C140: Aguascalientes | D140: Aguascalientes | E140: A | F140: 3
A141: 20140 | B141: Las Hadas | C141: Aguascalientes | D141: Aguascalientes | E141: A | F141: 3
A142: 20146 | B142: Los Arcos | C142: Aguascalientes | D142: Aguascalientes | E142: A | F142: 3
A143: 20149 | B143: Industrial | C143: Aguascalientes | D143: Aguascalientes | E143: A | F143: 3
A144: 20150 | B144: Lomas del Cobano | C144: Aguascalientes | D144: Aguascalientes | E144: A | F144: 3
A145: 20150 | B145: La Estrella | C145: Aguascalientes | D145: Aguascalientes | E145: A | F145: 3
A146: 20150 | B146: Macias Arellano | C146: Aguascalientes | D146: Aguascalientes | E146: A | F146: 3
A147: 20150 | B147: Buenavista | C147: Aguascalientes | D147: Aguascalientes | E147: A | F147: 3
A148: 20150 | B148: C.T.M. | C148: Aguascalientes | D148: Aguascalientes | E148: A | F148: 3
A149: 20157 | B149: La Higuerilla | C149: Aguascalientes | D149: Aguascalientes | E149: A | F149: 3
A150: 20157 | B150: Parras | C150: Aguascalientes | D150: Aguascalientes | E150: A | F150: 3
A151: 20158 | B151: Hacienda el Cobano 1a Sección | C151: Aguascalientes | D151: Aguascalientes | E151: A | F151: 3
A152: 20158 | B152: Villas del Cobano | C152: Aguascalientes | D152: Aguascalientes | E152: A | F152: 3
A153: 20158 | B153: Trojes del Cobano | C153: Aguascalientes | D153: Aguascalientes | E153: A | F153: 3
A154: 20158 | B154: El Cobano | C154: Aguascalientes | D154: Aguascalientes | E154: A | F154: 3
A155: 20159 | B155: Alianza Ferrocarrilera | C155: Aguascalientes | D155: Aguascalientes | E155: A | F155: 3
A156: 20159 | B156: Bosques del Prado Oriente | C156: Aguascalientes | D156: Aguascalientes | E156: A | F156: 3
A157: 20160 | B157: Francisco Guel Jimenez | C157: Aguascalientes | D157: Aguascalientes | E157: A | F157: 3
A158: 20160 | B158: Las Viñas INFONAVIT | C158: Aguascalientes | D158: Aguascalientes | E158: A | F158: 3
A159: 20164 | B159: Santa Anita 4a Sección | C159: Aguascalientes | D159: Aguascalientes | E159: A | F159: 3
A160: 20169 | B160: Santa Anita 2a Sección | C160: Aguascalientes | D160: Aguascalientes | E160: A | F160: 3
A161: 20169 | B161: Santa Anita | C161: Aguascalientes | D161: Aguascalientes | E161: A | F161: 3
A162: 20170 | B162: S.T.E.M.A. | C162: Aguascalientes | D162: Aguascalientes | E162: A | F162: 3
A163: 20170 | B163: Rodolfo Landeros Gallegos | C163: Aguascalientes | D163: Aguascalientes | E163: A | F163: 3
A164: 20170 | B164: Zona Militar | C164: Aguascalientes | D164: Aguascalientes | E164: A | F164: 3
A165: 20170 | B165: Lic Benito Juárez | C165: Aguascalientes | D165: Aguascalientes | E165: A | F165: 3
A166: 20170 | B166: Villa Bonita | C166: Aguascalientes | D166: Aguascalientes | E166: A | F166: 3
A167: 20170 | B167: El Maguey | C167: Aguascalientes | D167: Aguascalientes | E167: A | F167: 3
A168: 20170 | B168: Las Cumbres | C168: Aguascalientes | D168: Aguascalientes | E168: A | F168: 3
A169: 20170 | B169: Nazario Ortiz Garza | C169: Aguascalientes | D169: Aguascalientes | E169: A | F169: 3
A170: 20172 | B170: Lic Benito Palomino Dena | C170: Aguascalientes | D170: Aguascalientes | E170: A | F170: 3
A171: 20172 | B171: Claustros Loma Dorada | C171: Aguascalientes | D171: Aguascalientes | E171: A | F171: 3
A172: 20174 | B172: Vista de las Cumbres | C172: Aguascalientes | D172: Aguascalientes | E172: A | F172: 3
A173: 20174 | B173: Los Laureles 3ra. Sección | C173: Aguascalientes | D173: Aguascalientes | E173: A | F173: 3
A174: 20174 | B174: Paseos del Sol | C174: Aguascalientes | D174: Aguascalientes | E174: A | F174: 3
A175: 20174 | B175: Los Laureles 2a Sección | C175: Aguascalientes | D175: Aguascalientes | E175: A | F175: 3
A176: 20174 | B176: Los Laureles | C176: Aguascalientes | D176: Aguascalientes | E176: A | F176: 3
A177: 20174 | B177: Mirador de Las Culturas III | C177: Aguascalientes | D177: Aguascalientes | E177: A | F177: 3
A178: 20174 | B178: Villas de La Loma | C178: Aguascalientes | D178: Aguascalientes | E178: A | F178: 3
A179: 20174 | B179: Colinas de Oriente | C179: Aguascalientes | D179: Aguascalientes | E179: A | F179: 3
A180: 20174 | B180: Mirador de Las Culturas | C180: Aguascalientes | D180: Aguascalientes | E180: A | F180: 3
A181: 20174 | B181: Mirador de las Culturas 2a Sección | C181: Aguascalientes | D181: Aguascalientes | E181: A | F181: 3
A182: 20174 | B182: Los Pericos | C182: Aguascalientes | D182: Aguascalientes | E182: A | F182: 3
A183: 20175 | B183: Ejido las Cumbres | C183: Aguascalientes | D183: Aguascalientes | E183: A | F183: 3
A184: 20175 | B184: Lomas de Oriente 1a Sección | C184: Aguascalientes | D184: Aguascalientes | E184: A | F184: 3
A185: 20175 | B185: J Refugio Esparza Reyes | C185: Aguascalientes | D185: Aguascalientes | E185: A | F185: 3
A186: 20175 | B186: Lomas de Oriente 2da. Sección | C186: Aguascalientes | D186: Aguascalientes | E186: A | F186: 3
A187: 20175 | B187: Lomas de Oriente 3ra. Sección | C187: Aguascalientes | D187: Aguascalientes | E187: A | F187: 3
A188: 20177 | B188: C.N.O.P. Oriente | C188: Aguascalientes | D188: Aguascalientes | E188: A | F188: 3
A189: 20179 | B189: Pensadores Mexicanos | C189: Aguascalientes | D189: Aguascalientes | E189: A | F189: 3
A190: 20179 | B190: Luis Ortega Douglas | C190: Aguascalientes | D190: Aguascalientes | E190: A | F190: 3
A191: 20179 | B191: Las Cumbres | C191: Aguascalientes | D191: Aguascalientes | E191: A | F191: 3
A192: 20179 | B192: Pintores Mexicanos | C192: Aguascalientes | D192: Aguascalientes | E192: A | F192: 3
A193: 20179 | B193: Las Cumbres II | C193: Aguascalientes | D193: Aguascalientes | E193: A | F193: 3
A194: 20179 | B194: Cerro Alto | C194: Aguascalientes | D194: Aguascalientes | E194: A | F194: 3
A195: 20179 | B195: Progreso | C195: Aguascalientes | D195: Aguascalientes | E195: A | F195: 3
A196: 20180 | B196: Ferronales | C196: Aguascalientes | D196: Aguascalientes | E196: A | F196: 3
A197: 20180 | B197: Rinconada de La Alameda | C197: Aguascalientes | D197: Aguascalientes | E197: A | F197: 3
A198: 20180 | B198: Lomas de Santa Anita | C198: Aguascalientes | D198: Aguascalientes | E198: A | F198: 3
A199: 20180 | B199: Luis Gómez Zepeda (ferronales) | C199: Aguascalientes | D199: Aguascalientes | E199: A | F199: 3
A200: 20180 | B200: Bosques de La Alameda | C200: Aguascalientes | D200: Aguascalientes | E200: A | F200: 3
... 4300 more rows

Sheet Actividades (hidden)
B2: RESPONSABILIDAD CIVIL CONTRATISTAS
B3: CATALOGO DE RIESGOS SENCILLOS, MEDIANOS Y GRAVES
B5: Riesgo Sencillo: Aceptación Automática
B6: Riesgo Mediano: Aceptación Automática
B7: Riesgo Grave: Fuera de políticas
B9: Codigo | D9: ACTIVIDAD | E9: Tipo de Riesgo
B10: 1 | C10: Construcción de: | D10: Adaptación y Mejoras (Se incluyen cercas, bardas, drenajes e instalaciones sanitarias) | E10: Sencillo
B11: 8 | C11: Construcción de: | D11: Edificación de oficinas, casetas, casas-habitación y escuelas de adiestramiento | E11: Sencillo
B12: 9 | C12: Construcción de: | D12: Estacionamientos en terminales de Servicio | E12: Sencillo
B13: 12 | C13: Construcción de: | D13: Obras civiles y Electromecánicas | E13: Mediano
B14: 13 | C14: Construcción de: | D14: Pavimentación y/o asfaltado (Dentro del predio) | E14: Sencillo | G14: =IF('[2]Hoja de Trabajo'!$B$24=B13,E13,IF('[2]Hoja de Trabajo'!$B$24=B14,E14,IF('[2]Hoja de Trabajo'!$B$24=B15,E15,IF('[2]Hoja de Trabajo'!$B$24=B16,E16,G18)))) -> 
B15: 15 | C15: Construcción de: | D15: Tanques y Diques | E15: Mediano
B16: 17 | C16: Desmantelamiento, montaje, rehabilitación y Mantenimiento de: | D16: Maquinaria y equipos en general | E16: Mediano
B17: 19 | C17: Desmantelamiento, montaje, rehabilitación y Mantenimiento de: | D17: Tanques | E17: Mediano
B18: 31 | C18: Instalación y mantenimiento de: | D18: Equipo de Cómputo | E18: Sencillo | G18: =IF('[2]Hoja de Trabajo'!$B$24=B17,E17,IF('[2]Hoja de Trabajo'!$B$24=B18,E18,IF('[2]Hoja de Trabajo'!$B$24=B19,E19,IF('[2]Hoja de Trabajo'!$B$24=#REF!,#REF!,G22)))) -> 
B19: 32 | C19: Instalación y mantenimiento de: | D19: Equipos y sistemas de comunicación, eléctricos y electrónicos | E19: Sencillo
B20: 35 | C20: Instalación y mantenimiento de: | D20: Inmuebles, incluyendo aire acondicionado | E20: Sencillo
B21: 36 | C21: Instalación y mantenimiento de: | D21: Protecciones contra incendio | E21: Sencillo
B22: 43 | C22: Mantenimiento de: | D22: Bienes Muebles (Se incluyen bardas y cercas) | E22: Sencillo | G22: =IF('[2]Hoja de Trabajo'!$B$24=#REF!,#REF!,IF('[2]Hoja de Trabajo'!$B$24=B20,E20,IF('[2]Hoja de Trabajo'!$B$24=#REF!,#REF!,IF('[2]Hoja de Trabajo'!$B$24=B21,E21,G25)))) -> 
B23: 65 | C23: Servicios | D23: Alimentación y Hotelería | E23: Sencillo
B24: 66 | C24: Servicios | D24: Consultorías, Asesorías e Ingeniería | E24: Sencillo
B25: 68 | C25: Servicios | D25: Jardinería y Fumigación | E25: Sencillo | G25: =IF('[2]Hoja de Trabajo'!$B$24=#REF!,#REF!,IF('[2]Hoja de Trabajo'!$B$24=B22,E22,IF('[2]Hoja de Trabajo'!$B$24=B23,E23,IF('[2]Hoja de Trabajo'!$B$24=B24,E24,G29)))) -> 
B26: 74 | C26: Servicios | D26: Vigilancia y Seguridad | E26: Sencillo
C29: Construcción | D29: Inmuebles, Casa Habitacion, Escuelas, Estacionamientos | E29: Sencillo | G29: =IF('[2]Hoja de Trabajo'!$B$24=#REF!,#REF!,IF('[2]Hoja de Trabajo'!$B$24=B25,E25,IF('[2]Hoja de Trabajo'!$B$24=B26,E26,IF('[2]Hoja de Trabajo'!$B$24=#REF!,#REF!,#REF!)))) -> 
C30: Servicios | D30: Consultorias, Seguridad, Vigilancia, Hoteleria, Jardineria, Fumigacion | E30: Sencillo
C31: Montaje / Desmontaje | D31: Maquinaria y equipos en general, Tanques | E31: Mediano | G31: =IF('[2]Hoja de Trabajo'!$B$24=#REF!,#REF!,IF('[2]Hoja de Trabajo'!$B$24=#REF!,#REF!,IF('[2]Hoja de Trabajo'!$B$24=#REF!,#REF!,IF('[2]Hoja de Trabajo'!$B$24=#REF!,#REF!,#REF!)))) -> 
C32: Mantenimiento | D32: Inmuebles, Sistemas de Comunicación, Electricos, Electronicos, de Computo | E32: Sencillo
E33: =+C33 -> 0
C34: Construcción | D34: Inmuebles, Casa Habitacion, Escuelas, Estacionamientos | E34: Mediano
C35: Servicios | D35: Consultorias, Seguridad, Vigilancia, Hoteleria, Jardineria, Fumigacion | E35: Sencillo
C36: Montaje / Desmontaje | D36: Maquinaria y equipos en general, Tanques | E36: Mediano
C37: Mantenimiento | D37: Inmuebles, Sistemas de Comunicación, Electricos, Electronicos, de Computo | E37: Sencillo | G37: =IF('[2]Hoja de Trabajo'!$B$24=B33,E33,IF('[2]Hoja de Trabajo'!$B$24=B34,E34,IF('[2]Hoja de Trabajo'!$B$24=B35,E35,IF('[2]Hoja de Trabajo'!$B$24=B36,E36,G41)))) -> 
C40: OFICINA COMERCIAL
C41: MÉRIDA | G41: =IF('[2]Hoja de Trabajo'!$B$24=B37,E37,IF('[2]Hoja de Trabajo'!$B$24=#REF!,#REF!,IF('[2]Hoja de Trabajo'!$B$24=B38,E38,IF('[2]Hoja de Trabajo'!$B$24=B39,E39,G44)))) -> 
C42: CANCÚN
C43: CDMX
C44: MONTERREY | G44: =IF('[2]Hoja de Trabajo'!$B$24=B40,E40,IF('[2]Hoja de Trabajo'!$B$24=B41,E41,IF('[2]Hoja de Trabajo'!$B$24=B42,E42,IF('[2]Hoja de Trabajo'!$B$24=B43,E43,G48)))) -> 
C45: GUADALAJARA
C46: LEÓN
C47: PUEBLA
C48: QUERETARO | G48: =IF('[2]Hoja de Trabajo'!$B$24=B44,E44,IF('[2]Hoja de Trabajo'!$B$24=B45,E45,IF('[2]Hoja de Trabajo'!$B$24=B46,E46,IF('[2]Hoja de Trabajo'!$B$24=B47,E47,G52)))) -> 
C49: CDMX
C50: SAN LUIS POTOSÍ
G52: =IF('[2]Hoja de Trabajo'!$B$24=B48,E48,IF('[2]Hoja de Trabajo'!$B$24=B49,E49,IF('[2]Hoja de Trabajo'!$B$24=B50,E50,IF('[2]Hoja de Trabajo'!$B$24=B51,E51,G56)))) -> 
G56: =IF('[2]Hoja de Trabajo'!$B$24=B52,E52,IF('[2]Hoja de Trabajo'!$B$24=#REF!,#REF!,IF('[2]Hoja de Trabajo'!$B$24=B53,E53,IF('[2]Hoja de Trabajo'!$B$24=B54,E54,G59)))) -> 
G59: =IF('[2]Hoja de Trabajo'!$B$24=#REF!,#REF!,IF('[2]Hoja de Trabajo'!$B$24=B55,E55,IF('[2]Hoja de Trabajo'!$B$24=B56,E56,IF('[2]Hoja de Trabajo'!$B$24=B57,E57,G62)))) -> 
G62: =IF('[2]Hoja de Trabajo'!$B$24=B58,E58,IF('[2]Hoja de Trabajo'!$B$24=B59,E59,IF('[2]Hoja de Trabajo'!$B$24=B60,E60,IF('[2]Hoja de Trabajo'!$B$24=B61,E61,G66)))) -> 
G66: =IF('[2]Hoja de Trabajo'!$B$24=B62,E62,IF('[2]Hoja de Trabajo'!$B$24=B63,E63,IF('[2]Hoja de Trabajo'!$B$24=B64,E64,IF('[2]Hoja de Trabajo'!$B$24=#REF!,#REF!,#REF!)))) -> 
G73: =IF('[2]Hoja de Trabajo'!$B$24=B69,E69,IF('[2]Hoja de Trabajo'!$B$24=B70,E70,IF('[2]Hoja de Trabajo'!$B$24=B71,E71,IF('[2]Hoja de Trabajo'!$B$24=B72,E72,G77)))) -> 
G77: =IF('[2]Hoja de Trabajo'!$B$24=B73,E73,IF('[2]Hoja de Trabajo'!$B$24=B74,E74,IF('[2]Hoja de Trabajo'!$B$24=#REF!,#REF!,IF('[2]Hoja de Trabajo'!$B$24=B75,E75,G80)))) -> 
G80: =IF('[2]Hoja de Trabajo'!$B$24=B76,E76,IF('[2]Hoja de Trabajo'!$B$24=#REF!,#REF!,IF('[2]Hoja de Trabajo'!$B$24=B77,E77,IF('[2]Hoja de Trabajo'!$B$24=B78,E78,G83)))) -> 
G83: =IF('[2]Hoja de Trabajo'!$B$24=B79,E79,IF('[2]Hoja de Trabajo'!$B$24=B80,E80,IF('[2]Hoja de Trabajo'!$B$24=B81,E81,IF('[2]Hoja de Trabajo'!$B$24=B82,E82,G87)))) -> 0
G87: =IF('[2]Hoja de Trabajo'!$B$24=B83,E83,IF('[2]Hoja de Trabajo'!$B$24=B84,E84,IF('[2]Hoja de Trabajo'!$B$24=B85,E85,IF('[2]Hoja de Trabajo'!$B$24=B86,E86,G91)))) -> 0
G91: =IF('[2]Hoja de Trabajo'!$B$24=B87,E87,IF('[2]Hoja de Trabajo'!$B$24=B88,E88,IF('[2]Hoja de Trabajo'!$B$24=B89,E89,IF('[2]Hoja de Trabajo'!$B$24=B90,E90,G95)))) -> 0
G95: =IF('[2]Hoja de Trabajo'!$B$24=B91,E91,IF('[2]Hoja de Trabajo'!$B$24=B92,E92,IF('[2]Hoja de Trabajo'!$B$24=B93,E93,IF('[2]Hoja de Trabajo'!$B$24=B94,E94,G99)))) -> 0

Sheet Cuotas (hidden)
B1: Cuotas de riesgo al millar | G1: Gastos de adquisición | H1: 0.3
B2: Cobertura | C2: Sencillo | D2: Mediano | E2: Grave | G2: Gastos de operación | H2: 0.15
B3: Cobertura básica | C3: 0.4579839922 | D3: 0.7134697408 | E3: 0.641 | G3: Utilidad | H3: 0.05
A4: 0.1 | B4: Personal bajo relación de trabajo | C4: =$C$3*A4 -> 0.04579839922 | D4: =$D$3*A4 -> 0.07134697408 | E4: =$E$3*A4 -> 0.0641 | G4: Total | H4: =SUM(H1:H3) -> 0.5
A5: 0.1 | B5: Instalaciones subterráneas | C5: =$C$3*A5 -> 0.04579839922 | D5: =$D$3*A5 -> 0.07134697408 | E5: =$E$3*A5 -> 0.0641
A6: 0.1 | B6: Trabajos de soldadura | C6: 0.04579839922 | D6: 0.07134697408 | E6: 0.0641
A7: 0.25 | B7: Carga y descarga | C7: 0.1144959981 | D7: 0.1783674352 | E7: 0.16025
A8: 0.1 | B8: Demolición | C8: 0.04579839922 | D8: 0.07134697408 | E8: 0.0641
A9: 0.5 | B9: Explosivos | C9: 0.2289919961 | D9: 0.3567348704 | E9: 0.3205
A10: 0.1 | B10: Máquinas de trabajo | C10: 0.04579839922 | D10: 0.07134697408 | E10: 0.0641
A11: 0.1 | B11: Apuntalamiento | C11: 0.04579839922 | D11: 0.07134697408 | E11: 0.0641
A12: 0.1 | B12: Sostén a suelos y subsuelos vecinos | C12: 0.04579839922 | D12: 0.07134697408 | E12: 0.0641
A13: 0.05 | B13: RC arrendatario | C13: 0.02289919961 | D13: 0.03567348704 | E13: 0.03205
A14: 0.3 | B14: RC cruzada por riesgos vecinales | C14: 0.1373951977 | D14: 0.2140409222 | E14: 0.1923
A15: 0.05 | B15: RC asumida | C15: 0.02289919961 | D15: 0.03567348704 | E15: 0.03205
A16: 0.1 | B16: Otras obras especiales | C16: 0.04579839922 | D16: 0.07134697408 | E16: 0.0641
A17: 0.5 | B17: RC contaminación | C17: 0.2289919961 | D17: 0.3567348704 | E17: 0.3205
A18: 0.1 | B18: RC por daños ocasionados a bienes propiedad de terceros | C18: 0.04579839922 | D18: 0.07134697408 | E18: 0.0641
A19: 0.05 | B19: RC contratistas independientes | C19: 0.02289919961 | D19: 0.03567348704 | E19: 0.03205

Sheet Descuentos y recargos (hidden)
A1: Descuentos | E1: Recargos
A3: Rango de descuento por valor del contrato (M.N) | E3: Tipo de riesgo
A4: Límite inferior | B4: Límite superior | C4: descuento aplicable | E4: Suma Asegurada N | G4: Suma Asegurada D | I4: Sencillo | J4: Mediano | K4: Grave | M4: Recargo por pago fraccionado
A5: (desde) | B5: (hasta) | E5: desde | F5: hasta | G5: desde | H5: hasta | M5: Periodicidad | N5: Nacional
A6: 0 | B6: 2500000 | C6: 1 | E6: 1 | F6: 500000 | G6: =E6/'Hoja de trabajo'!$P$4 -> 0.05037783375 | H6: =F6/'Hoja de trabajo'!$P$4 -> 25188.91688 | I6: 0.996743092 | J6: 1.026444703 | K6: 1.138416694 | M6: Anual | N6: 0
A7: 2500001 | B7: 10000000 | C7: 0.8 | E7: =F6+1 -> 500001 | F7: 1000000 | G7: =E7/'Hoja de trabajo'!$P$4 -> 25188.96725 | H7: =F7/'Hoja de trabajo'!$P$4 -> 50377.83375 | I7: 1.004586184 | J7: 1.029789406 | K7: 1.139053387 | M7: Semestral | N7: 0.04 | O7: 0.03
A8: 10000001 | B8: 21000000 | C8: 0.75 | E8: =F7+1 -> 1000001 | F8: 1500000 | G8: =E8/'Hoja de trabajo'!$P$4 -> 50377.88413 | H8: =F8/'Hoja de trabajo'!$P$4 -> 75566.75063 | I8: 1.012429276 | J8: 1.033134109 | K8: 1.139690081 | M8: Trimestral | N8: 0.0475 | O8: 0.04
A9: 21000001 | B9: 35000000 | C9: 0.67 | E9: 1500001 | F9: 2000000 | G9: =E9/'Hoja de trabajo'!$P$4 -> 75566.80101 | H9: =F9/'Hoja de trabajo'!$P$4 -> 100755.6675 | I9: 1.020272368 | J9: 1.036478812 | K9: 1.140326774 | M9: Bimestral | N9: 0.055 | O9: 0.055
A10: 35000001 | B10: 56000000 | C10: 0.6 | E10: 2000001 | F10: 2500000 | G10: =E10/'Hoja de trabajo'!$P$4 -> 100755.7179 | H10: =F10/'Hoja de trabajo'!$P$4 -> 125944.5844 | I10: 1.028030514 | J10: 1.039823515 | K10: 1.140963468 | M10: Mensual | N10: 0.065 | O10: 0.05
A11: 56000001 | B11: 70000000 | C11: 0.55 | E11: 2500001 | F11: 3000000 | G11: =E11/'Hoja de trabajo'!$P$4 -> 125944.6348 | H11: =F11/'Hoja de trabajo'!$P$4 -> 151133.5013 | I11: 1.035781143 | J11: 1.043168218 | K11: 1.141600161
A12: 70000001 | B12: 125000000 | C12: 0.5 | E12: 3000001 | F12: 3500000 | G12: =E12/'Hoja de trabajo'!$P$4 -> 151133.5516 | H12: =F12/'Hoja de trabajo'!$P$4 -> 176322.4181 | I12: 1.043022465 | J12: 1.046490227 | K12: 1.142236855
A13: 125000001 | B13: 300000000 | C13: 0.45 | E13: 3500001 | F13: 4000000 | G13: =E13/'Hoja de trabajo'!$P$4 -> 176322.4685 | H13: =F13/'Hoja de trabajo'!$P$4 -> 201511.335 | I13: 1.048928779 | J13: 1.049801895 | K13: 1.142873548
A14: 300000001 | B14: 600000000 | C14: 0.4 | E14: 4000001 | F14: 4500000 | G14: =E14/'Hoja de trabajo'!$P$4 -> 201511.3854 | H14: =F14/'Hoja de trabajo'!$P$4 -> 226700.2519 | I14: 1.054744238 | J14: 1.053061364 | K14: 1.143510242
A15: 600000001 | B15: 1500000000 | C15: 0.35 | E15: 4500001 | F15: 5000000 | G15: =E15/'Hoja de trabajo'!$P$4 -> 226700.3023 | H15: =F15/'Hoja de trabajo'!$P$4 -> 251889.1688 | I15: 1.059680529 | J15: 1.056183401 | K15: 1.144146935
A16: Más de 1,500,000,001 | C16: 0.25 | E16: 5000001 | F16: 7500000 | G16: =E16/'Hoja de trabajo'!$P$4 -> 251889.2191 | H16: =F16/'Hoja de trabajo'!$P$4 -> 377833.7531 | I16: 1.07063563 | J16: 1.068540995 | K16: 1.147330403
E17: 7500001 | F17: 10000000 | G17: =E17/'Hoja de trabajo'!$P$4 -> 377833.8035 | H17: =F17/'Hoja de trabajo'!$P$4 -> 503778.3375 | I17: 1.074752038 | J17: 1.077409687 | K17: 1.150449116
A18: Número de máquinas | C18: descuento aplicable | E18: 10000001 | F18: 15000000 | G18: =E18/'Hoja de trabajo'!$P$4 -> 503778.3879 | H18: =F18/'Hoja de trabajo'!$P$4 -> 755667.5063 | I18: 1.082555038 | J18: 1.080459687 | K18: 1.208187067 | N18: 0 | O18: 1
A19: Desde | B19: Hasta | E19: 15000001 | F19: 20000000 | G19: =E19/'Hoja de trabajo'!$P$4 -> 755667.5567 | H19: =F19/'Hoja de trabajo'!$P$4 -> 1007556.675 | I19: 1.090358038 | J19: 1.083509687 | K19: 1.214471947 | N19: 24 | O19: 1
B20: 0 | C20: 1 | E20: 20000001 | F20: 25000000 | G20: =E20/'Hoja de trabajo'!$P$4 -> 1007556.725 | H20: =F20/'Hoja de trabajo'!$P$4 -> 1259445.844 | I20: 1.098161038 | J20: 1.086559687 | K20: 1.220756827 | M20: 25 | N20: 49 | O20: 0.8
B21: 25 | C21: 0.8 | E21: 25000001 | F21: 30000000 | G21: =E21/'Hoja de trabajo'!$P$4 -> 1259445.894 | H21: =F21/'Hoja de trabajo'!$P$4 -> 1511335.013 | I21: 1.105964038 | J21: 1.089609687 | K21: 1.227041707 | M21: 50 | N21: 74 | O21: 0.75
B22: 50 | C22: 0.75 | E22: 30000001 | F22: 35000000 | G22: =E22/'Hoja de trabajo'!$P$4 -> 1511335.063 | H22: =F22/'Hoja de trabajo'!$P$4 -> 1763224.181 | I22: 1.113767038 | J22: 1.092659687 | K22: 1.233326587 | M22: 75 | N22: 99 | O22: 0.7
B23: 75 | C23: 0.7 | E23: 35000001 | F23: 40000000 | G23: =E23/'Hoja de trabajo'!$P$4 -> 1763224.232 | H23: =F23/'Hoja de trabajo'!$P$4 -> 2015113.35 | I23: 1.121570038 | J23: 1.095709687 | K23: 1.239611467 | M23: 100 | N23: 149 | O23: 0.65
B24: 100 | C24: 0.65 | E24: 40000001 | F24: 45000000 | G24: =E24/'Hoja de trabajo'!$P$4 -> 2015113.401 | H24: =F24/'Hoja de trabajo'!$P$4 -> 2267002.519 | I24: 1.129373038 | J24: 1.098759687 | K24: 1.245896347 | M24: 150 | N24: 199 | O24: 0.6
B25: 150 | C25: 0.6 | E25: 45000001 | F25: 50000000 | G25: =E25/'Hoja de trabajo'!$P$4 -> 2267002.569 | H25: =F25/'Hoja de trabajo'!$P$4 -> 2518891.688 | I25: 1.137176038 | J25: 1.101809687 | K25: 1.252181227 | M25: 200 | N25: 499 | O25: 0.55
B26: 200 | C26: 0.55 | E26: 50000001 | F26: 75000000 | G26: =E26/'Hoja de trabajo'!$P$4 -> 2518891.738 | H26: =F26/'Hoja de trabajo'!$P$4 -> 3778337.531 | I26: 1.144979038 | J26: 1.104859687 | K26: 1.258466107 | M26: 500 | N26: 749 | O26: 0.5
B27: 500 | C27: 0.5 | E27: 75000001 | F27: 100000000 | G27: =E27/'Hoja de trabajo'!$P$4 -> 3778337.582 | H27: =F27/'Hoja de trabajo'!$P$4 -> 5037783.375 | I27: 1.152782038 | J27: 1.107909687 | K27: 1.264750987 | M27: Más de 750 | N27: 750 | O27: 0.4
B28: 750 | C28: 0.4 | E28: 100000001 | F28: 150000000 | G28: =E28/'Hoja de trabajo'!$P$4 -> 5037783.426 | H28: =F28/'Hoja de trabajo'!$P$4 -> 7556675.063 | I28: 1.160585038 | J28: 1.110959687 | K28: 1.271035867
E29: 150000001 | F29: 200000000 | G29: =E29/'Hoja de trabajo'!$P$4 -> 7556675.113 | H29: =F29/'Hoja de trabajo'!$P$4 -> 10075566.75 | I29: 1.168388038 | J29: 1.114009687 | K29: 1.277320747
A30: Tarifa a corto plazo | E30: 200000001 | F30: 250000000 | G30: =E30/'Hoja de trabajo'!$P$4 -> 10075566.8 | H30: =F30/'Hoja de trabajo'!$P$4 -> 12594458.44 | I30: 1.176191038 | J30: 1.117059687 | K30: 1.283605627
A31: Vigencia solicitada | B31: Porcentaje aplicable | E31: 250000001 | F31: 300000000 | G31: =E31/'Hoja de trabajo'!$P$4 -> 12594458.49 | H31: =F31/'Hoja de trabajo'!$P$4 -> 15113350.13 | I31: 1.183994038 | J31: 1.120109687 | K31: 1.289890507
A32: Hasta | E32: 300000001 | F32: 350000000 | G32: =E32/'Hoja de trabajo'!$P$4 -> 15113350.18 | H32: =F32/'Hoja de trabajo'!$P$4 -> 17632241.81 | I32: 1.191797038 | J32: 1.123159687 | K32: 1.296175387
A33: 0 | B33: 0.2 | E33: 350000001 | F33: 400000000 | G33: =E33/'Hoja de trabajo'!$P$4 -> 17632241.86 | H33: =F33/'Hoja de trabajo'!$P$4 -> 20151133.5 | I33: 1.199600038 | J33: 1.126209687 | K33: 1.302460267
A34: 1 | B34: 0.2 | E34: 400000001 | F34: 450000000 | G34: =E34/'Hoja de trabajo'!$P$4 -> 20151133.55 | H34: =F34/'Hoja de trabajo'!$P$4 -> 22670025.19 | I34: 1.207403038 | J34: 1.129259687 | K34: 1.308745147
A35: 2 | B35: 0.3 | E35: 450000001 | F35: 500000000 | G35: =E35/'Hoja de trabajo'!$P$4 -> 22670025.24 | H35: =F35/'Hoja de trabajo'!$P$4 -> 25188916.88 | I35: 1.215206038 | J35: 1.132309687 | K35: 1.315030027
A36: 3 | B36: 0.4 | E36: 500000001 | F36: 750000000 | G36: =E36/'Hoja de trabajo'!$P$4 -> 25188916.93 | H36: =F36/'Hoja de trabajo'!$P$4 -> 37783375.31 | I36: 1.223009038 | J36: 1.135359687 | K36: 1.321314907
A37: 4 | B37: 0.5 | E37: 750000001 | F37: 1000000000 | G37: =E37/'Hoja de trabajo'!$P$4 -> 37783375.37 | H37: =F37/'Hoja de trabajo'!$P$4 -> 50377833.75 | I37: 1.230812038 | J37: 1.138409687 | K37: 1.327599787
A38: 5 | B38: 0.6
A39: 6 | B39: 0.7
A40: 7 | B40: 0.75
A41: 8 | B41: 0.8
A42: 9 | B42: 0.85
A43: 10 | B43: 0.9
A44: 11 | B44: 0.95
A45: 12 | B45: 1

Sheet Derechos de póliza (hidden)
A1: Derechos de póliza
A2: Moneda Nacional | D2: Dólares
A3: Prima anual | C3: Importe | D3: Prima anual | F3: Importe
A4: Desde | B4: Hasta | D4: Desde | E4: Hasta
A5: 1 | B5: 500 | C5: 75 | D5: =A5/'Hoja de trabajo'!#REF! ->  | E5: =B5/'Hoja de trabajo'!#REF! ->  | F5: =C5/'Hoja de trabajo'!#REF! -> 
A6: 501 | B6: 2500 | C6: 150 | D6: =A6/'Hoja de trabajo'!#REF! ->  | E6: =B6/'Hoja de trabajo'!#REF! ->  | F6: =C6/'Hoja de trabajo'!#REF! -> 
A7: 2501 | B7: 10000 | C7: 200 | D7: =A7/'Hoja de trabajo'!#REF! ->  | E7: =B7/'Hoja de trabajo'!#REF! ->  | F7: =C7/'Hoja de trabajo'!#REF! -> 
A8: 10001 | B8: 20000 | C8: 300 | D8: =A8/'Hoja de trabajo'!#REF! ->  | E8: =B8/'Hoja de trabajo'!#REF! ->  | F8: =C8/'Hoja de trabajo'!#REF! -> 
A9: 20001 | B9: 30000 | C9: 400 | D9: =A9/'Hoja de trabajo'!#REF! ->  | E9: =B9/'Hoja de trabajo'!#REF! ->  | F9: =C9/'Hoja de trabajo'!#REF! -> 
A10: 30001 | B10: 50000 | C10: 500 | D10: =A10/'Hoja de trabajo'!#REF! ->  | E10: =B10/'Hoja de trabajo'!#REF! ->  | F10: =C10/'Hoja de trabajo'!#REF! -> 
A11: 50001 | B11: 75000 | C11: 600 | D11: =A11/'Hoja de trabajo'!#REF! ->  | E11: =B11/'Hoja de trabajo'!#REF! ->  | F11: =C11/'Hoja de trabajo'!#REF! -> 
A12: 75001 | B12: 100000 | C12: 750 | D12: =A12/'Hoja de trabajo'!#REF! ->  | E12: =B12/'Hoja de trabajo'!#REF! ->  | F12: =C12/'Hoja de trabajo'!#REF! -> 
A13: 100001 | B13: 999999999 | C13: 1000 | D13: =A13/'Hoja de trabajo'!#REF! ->  | E13: =B13/'Hoja de trabajo'!#REF! ->  | F13: =C13/'Hoja de trabajo'!#REF! -> 
